bitfinex-derivatives/quotes_ETHF0:USTF0_20250828
["timestamp","ask_amount","ask_price","bid_price","bid_amount"]
[1756389015054,0.99351162,4581.5,4581.4,21.463]
[1756389015249,0.51501162,4581.5,4581.4,21.463]
[1756389015449,0.4785,4581.4,4581.3,3.2078]
[1756389015652,0.99351162,4581.4,4581.2,21.465]
[1756389015855,0.51501162,4581.3,4579.7,3.2078]
[1756389016151,0.4785,4581.5,4579.5,4.538]
[1756389016152,0.4785,4580.6,4579.5,4.538]
[1756389016351,0.4785,4580.4,4579.5,4.538]
[1756389016547,0.51501162,4580.3,4579.5,4.538]
[1756389016748,0.51501162,4580.2,4579.4,18.582]
[1756389016948,0.51501162,4580.1,4579.4,18.582]
[1756389017150,0.51501162,4580.0,4579.4,18.582]
[1756389017462,3.2078,4580.7,4579.4,18.582]
[1756389017463,0.51501162,4579.9,4579.4,18.582]
[1756389017656,0.4785,4579.6,4578.8,3.2078]
[1756389017848,0.4785,4579.4,4578.8,3.2078]
[1756389018053,0.4785,4579.2,4578.8,3.2078]
[1756389018254,0.51501162,4579.1,4578.8,3.2078]
[1756389018561,0.51501162,4579.0,4578.8,3.60088]
[1756389018859,2.0327367,4581.3,4579.4,0.39303]
[1756389019054,0.50221543,4581.2,4580.4,3.2078]
[1756389019257,0.4785,4581.3,4579.9,3.2078]
[1756389019258,0.50221543,4581.1,4579.9,3.2078]
[1756389019456,0.4785,4580.8,4580.0,1.57267154]
[1756389019653,0.4785,4580.6,4579.7,1.57267154]
[1756389019852,3.2078,4580.9,4579.8,1.57267154]
[1756389020057,3.2078,4580.4,4579.0,1.57267154]
[1756389020253,0.98071672,4580.3,4579.0,1.57267154]
[1756389020458,0.98071672,4580.3,4578.8,4.03]
[1756389020459,0.39304,4579.3,4579.2,3.2078]
[1756389020757,0.39293,4580.7,4579.3,0.98262]
[1756389020955,0.39295,4580.5,4580.3,1.57263112]
[1756389021255,3.2078,4581.0,4580.3,1.57263112]
[1756389021256,0.39294,4580.6,4580.4,7.099]
[1756389021654,0.9823,4580.8,4580.5,21.513]
[1756389022162,0.39291,4580.9,4580.7,3.2078]
[1756389022364,0.4785,4580.8,4580.7,3.2078]
[1756389022555,0.87146,4580.3,4580.2,0.91560112]
[1756389022756,0.8715,4579.8,4579.7,3.2078]
[1756389023258,0.8715,4579.8,4579.0,3.2078]
[1756389023259,0.87156,4579.1,4579.0,3.2078]
[1756389023454,0.87156,4579.1,4577.9,31.461]
[1756389023455,0.4785,4578.9,4578.5,3.2078]
[1756389023757,0.3931,4578.6,4578.5,3.2078]
[1756389024255,0.3931,4578.6,4577.2,1.9693935]
[1756389024256,0.98285,4578.2,4577.2,1.9693935]
[1756389024563,0.39324,4577.0,4576.9,3.2078]
[1756389024760,0.87174,4577.0,4576.9,3.2078]
[1756389025066,0.39333,4576.0,4575.5,3.2078]
[1756389025362,0.39338,4575.5,4575.3,1.9693935]
[1756389025562,0.19504343,4575.4,4575.2,21.515]
[1756389025756,0.19504343,4575.3,4575.2,21.515]
[1756389026353,5.7449467,4578.0,4575.2,27.7029635]
[1756389026561,0.39325,4577.0,4576.1,1.9693935]
[1756389026862,0.39326,4576.8,4576.7,3.2078]
[1756389027062,0.39329,4576.5,4576.1,3.2078]
[1756389027454,0.98303,4577.4,4576.1,3.2078]
[1756389027650,0.3933,4576.4,4576.2,21.531]
[1756389028567,1.46162,4577.0,4576.3,21.531]
[1756389028762,3.2078,4576.9,4575.7,1.9693935]
[1756389029093,3.2078,4576.9,4575.6,3.2078]
[1756389029094,0.39334,4575.8,4575.6,3.2078]
[1756389029359,0.39335,4575.8,4575.4,17.132]
[1756389029560,3.2078,4576.9,4575.4,17.132]
[1756389029749,0.39333,4576.0,4575.7,3.2078]
[1756389029955,3.2078,4576.9,4575.7,3.2078]
[1756389030150,0.39338,4575.4,4575.0,1.9693935]
[1756389030361,0.39338,4575.5,4575.1,21.526]
[1756389030677,0.39338,4575.5,4574.5,43.55749044]
[1756389030678,0.39346,4574.5,4574.4,1.9693935]
[1756389030849,0.98382,4573.7,4573.1,2.75749044]
[1756389031050,0.39358,4573.0,4572.9,3.2078]
[1756389031257,1.46245,4573.2,4572.9,3.2078]
[1756389031451,0.98399,4572.9,4572.3,24.7348]
[1756389031655,0.4785,4573.0,4572.3,24.7348]
[1756389031656,0.39364,4572.4,4572.3,24.7348]
[1756389031865,0.39364,4572.4,4572.3,21.527]
[1756389032456,0.39364,4572.4,4572.3,21.994]
[1756389032660,0.39364,4572.4,4572.3,0.467]
[1756389032851,0.39365,4572.3,4572.2,3.2078]
[1756389033054,0.39363,4572.5,4572.3,0.467]
[1756389033261,3.2078,4573.4,4572.5,0.467]
[1756389033462,3.2078,4573.4,4572.8,0.467]
[1756389033463,0.3936,4572.9,4572.8,0.467]
[1756389033658,0.39357,4573.3,4572.7,3.6014]
[1756389033865,0.4785,4574.7,4573.2,3.2078]
[1756389034169,0.98366,4574.5,4573.4,0.467]
[1756389034461,0.39354,4573.5,4573.4,0.467]
[1756389034659,0.39356,4573.3,4573.2,24.7368]
[1756389034860,0.4785,4573.7,4572.4,0.467]
[1756389035068,0.39363,4572.5,4571.9,0.467]
[1756389035282,0.4785,4573.2,4572.2,3.2078]
[1756389035566,0.53632173,4573.1,4572.3,0.467]
[1756389035876,0.4785,4573.7,4572.3,0.467]
[1756389035877,0.53632173,4573.0,4572.3,0.4835]
[1756389036055,0.4785,4573.7,4572.8,3.6913]
[1756389036259,0.39359,4573.0,4572.9,0.4835]
[1756389036454,0.39369,4571.9,4571.7,3.6913]
[1756389036663,0.39369,4571.9,4571.8,0.4835]
[1756389036968,0.984,4572.9,4569.7,3.2078]
[1756389036969,0.39386,4569.8,4569.7,3.2078]
[1756389037268,0.39393,4569.0,4568.4,3.2078]
[1756389037458,0.89363,4569.0,4568.9,7.66e-06]
[1756389037652,0.39402,4568.0,4567.9,3.6913]
[1756389037859,0.4997,4568.7,4567.9,3.2078]
[1756389038066,0.53167802,4568.6,4567.9,3.2078]
[1756389038365,0.53167802,4568.5,4567.9,3.2078]
[1756389038560,0.53167802,4568.4,4568.2,0.8775]
[1756389038761,0.53167802,4568.3,4568.2,0.8775]
[1756389039259,3.2078,4569.8,4568.1,21.624]
[1756389039471,0.4997,4570.1,4568.4,3.2078]
[1756389039661,0.4997,4570.1,4569.4,3.2078]
[1756389039864,3.2078,4570.9,4569.4,3.2078]
[1756389040057,3.2078,4570.9,4570.3,0.39382]
[1756389040260,3.2078,4570.9,4569.4,0.98474]
[1756389040261,3.2078,4571.1,4569.4,3.2078]
[1756389040460,0.39396,4568.7,4568.1,3.2078]
[1756389040662,3.2078,4568.5,4567.1,3.2135746]
[1756389040864,0.4997,4567.9,4567.1,3.2135746]
[1756389041070,0.4997,4567.2,4567.1,0.0057746]
[1756389041267,0.4997,4567.2,4564.9,0.00651063]
[1756389041268,11.33767,4567.0,4565.2,3.2078]
[1756389041464,9.85208,4567.3,4565.3,0.20538951]
[1756389041465,0.281,4565.4,4565.3,0.20538951]
[1756389041670,32.4832,4567.4,4565.3,0.20538951]
[1756389041671,3.2078,4566.5,4565.3,0.20538951]
[1756389041865,3.2078,4567.1,4565.5,0.4835]
[1756389042074,3.2078,4567.1,4566.1,3.2078]
[1756389042374,3.2078,4567.1,4566.2,0.20538951]
[1756389042673,0.39416,4566.3,4565.5,3.6913]
[1756389042872,3.2078,4567.1,4566.1,0.4835]
[1756389043067,3.2078,4568.1,4567.0,0.4835]
[1756389043265,0.39405,4567.6,4567.2,3.2078]
[1756389043573,0.98486,4568.9,4566.7,3.2078]
[1756389043574,0.4997,4567.4,4566.7,3.2078]
[1756389043875,3.2078,4567.8,4566.7,3.2078]
[1756389043876,0.6902858,4567.3,4566.8,0.2053778]
[1756389044074,0.39407,4567.4,4566.9,0.2053778]
[1756389044371,3.2078,4567.0,4565.9,10.378]
[1756389044683,3.2078,4567.0,4565.5,0.4835]
[1756389044684,0.89388,4566.1,4566.0,0.20538252]
[1756389044864,0.19056245,4566.1,4566.0,0.20538252]
[1756389045067,0.19056245,4566.1,4565.3,3.2078]
[1756389045269,0.19047896,4566.0,4565.4,0.20541915]
[1756389045479,0.39422,4565.7,4565.5,0.20541915]
[1756389045777,0.98535,4566.6,4565.3,3.2078]
[1756389045778,3.2078,4567.8,4566.3,0.98541]
[1756389045962,0.19046545,4567.7,4567.5,3.2078]
[1756389046170,0.19046545,4567.6,4567.5,3.2078]
[1756389046364,3.2078,4569.8,4567.5,21.75312609]
[1756389046574,0.39394,4568.9,4567.9,3.60182]
[1756389046869,0.39391,4569.3,4568.7,3.2078]
[1756389047073,0.4997,4570.0,4568.8,19.18128075]
[1756389047271,0.39393,4569.0,4568.9,0.20528075]
[1756389047471,0.4997,4569.0,4568.2,21.834]
[1756389047676,0.39392,4569.2,4568.4,3.2078]
[1756389047878,10.82953,4570.6,4568.4,3.2078]
[1756389047879,3.2078,4570.6,4569.1,3.2078]
[1756389048071,0.4997,4571.0,4569.6,3.2078]
[1756389048264,0.98423,4571.8,4570.6,3.2078]
[1756389048265,3.2078,4571.8,4570.6,3.2078]
[1756389048470,3.2078,4571.3,4570.1,17.43]
[1756389048672,3.2078,4571.3,4569.4,3.2078]
[1756389048673,0.39389,4569.5,4569.4,3.2078]
[1756389048874,0.4997,4570.2,4569.4,3.2078]
[1756389048875,0.39388,4569.6,4569.4,3.40710487]
[1756389049069,3.7075,4570.2,4569.5,0.19930487]
[1756389049278,0.39389,4569.5,4569.4,3.2078]
[1756389049480,3.7075,4570.2,4569.4,3.40711763]
[1756389049674,0.4997,4571.0,4570.1,3.2078]
[1756389049976,0.4997,4571.0,4570.2,0.19931763]
[1756389050175,0.39381,4570.4,4570.3,0.19931763]
[1756389050370,0.3938,4570.6,4570.3,0.19931763]
[1756389050567,0.3938,4570.6,4570.4,0.19931763]
[1756389050769,0.39383,4570.2,4570.1,3.2078]
[1756389050971,0.89353,4570.2,4570.1,0.19929797]
[1756389051273,0.89353,4570.2,4565.7,4.72856044]
[1756389051274,0.39395,4568.8,4568.7,3.2078]
[1756389051470,0.39397,4568.5,4567.7,0.39404]
[1756389051678,0.394,4568.2,4567.9,3.2078]
[1756389051875,0.394,4568.2,4568.0,21.875]
[1756389052073,0.91705682,4568.2,4568.0,21.875]
[1756389052282,1.41675682,4568.2,4568.1,34.7278]
[1756389052979,0.91705682,4568.2,4568.1,34.7278]
[1756389053178,0.394,4568.2,4568.1,34.7278]
[1756389053486,0.394,4568.2,4568.1,56.6028]
[1756389053780,0.394,4568.2,4568.1,56.5998]
[1756389054005,3.2078,4569.2,4568.1,60.5998]
[1756389054177,0.394,4568.2,4568.1,34.7278]
[1756389054372,0.394,4568.2,4568.1,56.5948]
[1756389054975,3.2078,4569.2,4568.1,60.5948]
[1756389055284,3.2078,4570.1,4568.7,3.2078]
[1756389055481,9.84239,4571.8,4568.1,31.52]
[1756389055482,3.2078,4570.8,4569.8,3.2078]
[1756389055789,0.52320018,4570.7,4569.9,3.68646425]
[1756389056081,0.3938,4570.5,4570.3,3.2078]
[1756389056284,0.4997,4571.4,4570.3,3.2078]
[1756389056285,0.98425,4571.7,4570.4,0.2914497]
[1756389056482,0.3938,4570.6,4570.5,0.29142682]
[1756389056678,1.41678109,4570.6,4570.5,0.29142682]
[1756389057780,1.41678109,4570.6,4570.5,6.82e-06]
[1756389058176,0.91708109,4570.6,4570.5,6.82e-06]
[1756389058787,1.41678109,4570.6,4570.5,6.82e-06]
[1756389058974,0.91708109,4570.6,4570.5,6.82e-06]
[1756389059175,0.52328109,4570.6,4570.5,6.82e-06]
[1756389059481,0.39379,4570.7,4570.5,6.82e-06]
[1756389059676,3.2078,4571.5,4570.4,3.2078]
[1756389059677,0.3938,4570.6,4570.4,3.2078]
[1756389059875,0.39383,4570.1,4570.0,21.848]
[1756389060283,0.98454,4570.3,4569.8,2.70916]
[1756389060474,0.98472,4569.5,4569.0,3.2078]
[1756389060677,0.98472,4569.5,4568.9,21.87]
[1756389060678,0.52320305,4569.4,4568.5,3.2078]
[1756389060880,0.39391,4569.2,4569.0,3.2078]
[1756389061087,9.84479,4570.7,4569.1,0.9848]
[1756389061088,3.2078,4570.7,4569.1,0.9848]
[1756389061285,3.2078,4570.7,4569.0,3.2078]
[1756389061286,0.39382,4570.3,4570.1,3.2078]
[1756389061484,0.4997,4571.9,4570.1,3.2078]
[1756389061485,0.4997,4571.9,4571.1,0.39374]
[1756389061683,0.984,4572.9,4571.8,3.2078]
[1756389061984,0.52377512,4572.8,4571.9,18.336]
[1756389062175,0.39363,4572.5,4572.3,3.2078]
[1756389062479,3.2078,4572.9,4572.3,21.879]
[1756389062678,0.39363,4572.4,4572.3,21.879]
[1756389062878,0.39363,4572.5,4572.3,21.879]
[1756389063077,0.39363,4572.5,4571.8,34.7318]
[1756389063078,0.39363,4572.5,4572.4,0.2051039]
[1756389063475,0.39363,4572.5,4572.4,22.0811039]
[1756389063677,3.2078,4573.9,4572.4,29.2889039]
[1756389063880,0.39343,4574.8,4573.8,3.60131]
[1756389064076,0.39345,4574.6,4574.5,3.2078]
[1756389064276,1.41715765,4574.6,4574.5,25.3029039]
[1756389064486,0.98367,4574.4,4573.8,31.522]
[1756389064679,5.02370765,4574.6,4573.8,31.522]
[1756389064680,0.39349,4574.1,4573.9,0.20501961]
[1756389064871,0.4997,4574.6,4574.0,21.893]
[1756389065072,0.39346,4574.4,4574.0,21.893]
[1756389065275,0.39345,4574.6,4574.1,3.2078]
[1756389065480,4.19141,4574.7,4574.1,3.2078]
[1756389065686,0.39348,4574.2,4574.1,3.2078]
[1756389065882,3.2078,4574.7,4574.1,3.2078]
[1756389066083,0.39347,4574.3,4574.1,3.2078]
[1756389066289,0.39347,4574.3,4574.2,21.882]
[1756389066581,1.39680495,4574.3,4574.2,21.882]
[1756389066775,1.46318,4573.9,4573.4,21.879]
[1756389066981,0.39361,4572.7,4572.6,0.0321]
[1756389067191,0.39364,4572.3,4572.2,34.7228]
[1756389067380,0.39364,4572.3,4572.2,56.6349]
[1756389067688,3.2078,4573.7,4572.3,0.0321]
[1756389067890,0.39359,4573.0,4572.9,0.0321]
[1756389068089,0.4794,4574.7,4572.9,0.0321]
[1756389068387,3.2078,4574.9,4574.2,3.2078]
[1756389068388,0.52395806,4574.6,4574.2,3.2078]
[1756389068584,0.98332,4576.0,4574.5,0.0321]
[1756389068790,0.39339,4575.2,4575.1,3.2078]
[1756389068986,0.39337,4575.5,4575.1,3.2078]
[1756389069192,1.46274,4575.9,4575.1,3.2078]
[1756389069521,0.39344,4574.7,4574.5,3.2078]
[1756389069685,0.39343,4574.9,4574.7,0.0321]
[1756389069884,0.39343,4574.9,4574.8,0.31945214]
[1756389070081,3.2078,4576.1,4574.8,0.28735214]
[1756389070283,0.39333,4575.9,4575.8,3.2078]
[1756389070482,3.2078,4576.7,4575.8,3.49515214]
[1756389070686,0.87273,4576.0,4575.9,20.62135214]
[1756389071188,0.39333,4576.0,4575.9,20.62135214]
[1756389071390,0.39332,4576.1,4575.9,0.28735214]
[1756389071588,0.87272,4576.1,4576.0,22.15435214]
[1756389071778,4.08052,4576.1,4576.0,0.28735214]
[1756389071982,8.59830315,4576.1,4576.0,0.28735214]
[1756389072180,8.59830315,4576.1,4575.0,40.8]
[1756389072181,0.3934,4575.1,4575.0,0.3204]
[1756389072380,0.39339,4575.3,4575.0,22.1874]
[1756389072603,0.39337,4575.6,4575.2,3.2078]
[1756389072887,0.39337,4575.6,4573.4,0.98387]
[1756389072888,0.39343,4574.8,4574.7,3.2078]
[1756389073084,0.39343,4574.8,4574.7,21.863]
[1756389073289,0.98352,4575.1,4574.2,3.5282]
[1756389073290,0.39346,4574.4,4574.2,3.5282]
[1756389073589,0.4794,4574.4,4573.4,0.3204]
[1756389073793,3.2078,4573.7,4572.7,31.5]
[1756389073983,0.3935,4574.0,4573.1,0.39357]
[1756389074189,3.2078,4574.8,4573.6,0.3204]
[1756389074488,0.39347,4574.4,4573.8,0.3204]
[1756389074693,0.98362,4574.6,4573.8,0.3204]
[1756389074885,0.39351,4573.9,4573.8,0.3204]
[1756389075194,0.3935,4574.1,4573.8,0.3204]
[1756389075488,0.39349,4574.1,4573.9,15.45]
[1756389075697,0.39349,4574.1,4574.0,0.3204]
[1756389076193,3.2078,4575.4,4574.1,0.3204]
[1756389076492,0.39333,4576.0,4575.3,0.39338]
[1756389076686,0.39337,4575.5,4575.4,0.20497027]
[1756389076886,0.87277,4575.5,4575.4,22.04197027]
[1756389077604,0.87277,4575.5,4575.4,0.20497027]
[1756389077892,0.39337,4575.5,4575.4,0.20497027]
[1756389078084,0.87277,4575.5,4575.4,0.20497027]
[1756389078283,0.87277,4575.5,4575.4,22.02597027]
[1756389078494,0.87277,4575.5,4575.4,0.20497027]
[1756389078687,0.39337,4575.5,4575.4,0.20497027]
[1756389079587,0.98358,4574.9,4574.1,44.0078]
[1756389079790,0.9835,4575.2,4574.2,22.3476]
[1756389079791,0.39348,4574.3,4574.2,22.3476]
[1756389079993,0.39347,4574.4,4574.2,21.819]
[1756389080194,0.39351,4573.8,4573.7,31.496]
[1756389080490,0.3935,4574.0,4573.7,34.7038]
[1756389080698,0.39351,4573.9,4573.8,0.5176]
[1756389080891,0.4794,4575.0,4573.8,22.3386]
[1756389081088,11.79827,4576.7,4573.8,22.3386]
[1756389081089,0.4794,4575.7,4574.7,0.39343]
[1756389081289,0.39341,4575.1,4574.9,3.2078]
[1756389081799,0.87281,4575.1,4575.0,21.819]
[1756389082285,3.2078,4575.9,4575.0,22.3366]
[1756389082486,0.4794,4576.2,4575.0,63.1366]
[1756389082687,0.39338,4575.4,4575.0,63.01241]
[1756389082892,0.3934,4575.2,4575.1,0.5176]
[1756389083091,0.9833,4576.1,4575.1,21.81]
[1756389083288,0.39339,4575.3,4575.2,0.5176]
[1756389083491,0.9833,4576.1,4575.1,21.81]
[1756389083691,0.39339,4575.3,4575.2,0.5176]
[1756389083889,0.39337,4575.5,4575.2,0.5176]
[1756389084085,0.39337,4575.5,4575.4,3.7254]
[1756389084289,0.3934,4575.1,4575.0,40.8]
[1756389084493,0.4794,4575.0,4574.9,3.2078]
[1756389084797,4.19122,4575.6,4574.4,3.2078]
[1756389084798,0.39342,4574.9,4574.4,3.2078]
[1756389085021,4.67062,4575.6,4574.4,3.2078]
[1756389085022,0.98345,4575.4,4574.5,15.665]
[1756389085297,0.98349,4575.2,4574.6,0.5176]
[1756389085507,0.39345,4574.5,4574.4,3.2078]
[1756389085995,0.39345,4574.5,4574.4,24.9818]
[1756389085996,0.87285,4574.5,4574.4,24.9818]
[1756389086195,0.39344,4574.7,4574.4,24.9818]
[1756389086390,0.98347,4575.3,4574.5,0.5176]
[1756389086594,0.39344,4574.7,4574.5,0.5176]
[1756389086791,0.39343,4574.8,4574.5,0.5176]
[1756389086993,0.98347,4575.3,4574.4,3.2078]
[1756389086994,0.39345,4574.5,4574.4,3.2078]
[1756389087190,0.4794,4575.2,4574.5,0.5176]
[1756389087495,0.39342,4574.9,4574.4,24.9868]
[1756389087793,0.39344,4574.7,4574.5,0.5176]
[1756389088000,4.19121,4575.6,4574.4,3.2078]
[1756389088001,0.39345,4574.5,4574.4,3.2078]
[1756389088192,0.39345,4574.5,4574.4,24.9798]
[1756389088387,0.39345,4574.5,4574.4,3.2078]
[1756389088592,0.87285,4574.5,4574.4,24.9798]
[1756389088894,0.39345,4574.5,4574.4,24.9798]
[1756389089154,0.39339,4575.3,4574.9,0.39342]
[1756389089292,0.98343,4575.5,4574.5,0.21858]
[1756389089492,0.39346,4574.5,4574.3,3.7254]
[1756389089695,0.39349,4574.1,4573.8,44.0078]
[1756389089991,0.39341,4575.1,4574.8,0.5176]
[1756389090194,0.98333,4576.0,4575.0,0.5176]
[1756389090195,0.98334,4575.9,4575.0,0.5176]
[1756389090395,0.3934,4575.1,4575.0,0.5176]
[1756389090591,3.2078,4576.0,4574.7,0.5176]
[1756389090592,0.39343,4574.8,4574.7,0.5176]
[1756389090792,0.98348,4575.3,4574.3,3.2078]
[1756389091091,0.98348,4575.3,4571.8,1.96842]
[1756389091092,0.4794,4574.2,4573.6,3.2078]
[1756389091292,0.4794,4574.2,4573.1,0.5176]
[1756389091293,0.39351,4573.9,4573.1,3.7254]
[1756389091496,0.39351,4573.9,4573.2,0.39356]
[1756389091794,0.49555857,4573.8,4572.6,3.2078]
[1756389091996,0.49555857,4573.8,4573.6,21.784]
[1756389091997,0.39352,4573.7,4573.6,21.784]
[1756389092204,0.88907857,4573.7,4573.6,21.784]
[1756389092497,1.36847857,4573.7,4573.6,21.784]
[1756389092699,0.39361,4572.7,4572.6,3.2078]
[1756389093000,0.98393,4573.2,4572.6,3.2078]
[1756389093001,0.98384,4573.6,4572.6,25.1848902]
[1756389093196,0.3936,4572.8,4572.7,0.2050902]
[1756389094808,0.3936,4572.8,4572.7,21.745]
[1756389094995,0.39359,4573.0,4572.7,21.95010434]
[1756389095192,0.98379,4573.8,4572.8,0.72270434]
[1756389095390,0.98379,4573.8,4572.6,3.2078]
[1756389095391,0.87301,4572.7,4572.6,3.2078]
[1756389095595,0.87301,4572.7,4572.6,25.15889179]
[1756389095789,0.87301,4572.7,4572.6,0.20510117]
[1756389096001,5.37396127,4572.7,4572.6,0.20510117]
[1756389096299,5.37396127,4572.7,4571.5,3.2078]
[1756389096300,0.3937,4571.6,4571.5,3.2078]
[1756389096503,0.98402,4572.8,4571.6,0.5008]
[1756389096700,0.39367,4572.0,4571.7,0.20512955]
[1756389096899,0.39367,4572.1,4571.8,0.70592955]
[1756389097102,0.39364,4572.4,4572.0,3.2078]
[1756389097408,0.39362,4572.6,4572.1,22.34878955]
[1756389097603,3.2078,4573.0,4572.2,0.70592955]
[1756389097906,0.39364,4572.4,4572.3,21.95212955]
[1756389098104,0.39364,4572.4,4572.3,22.45292955]
[1756389098800,0.39364,4572.4,4572.3,0.20512955]
[1756389098996,0.39375,4571.1,4570.7,0.5008]
[1756389099197,0.88963,4571.3,4571.2,21.732]
[1756389099402,1.39032805,4571.3,4571.2,21.732]
[1756389099602,0.3938,4570.5,4570.4,3.2078]
[1756389099896,0.8897,4570.5,4570.4,24.9478]
[1756389100103,0.8897,4570.5,4570.4,3.2078]
[1756389100522,1.39028722,4570.5,4570.4,3.2078]
[1756389100893,0.99648722,4570.5,4570.1,14.587]
[1756389101097,0.4959,4570.3,4570.1,14.587]
[1756389101307,0.39382,4570.2,4570.1,14.587]
[1756389101501,0.88972,4570.2,4570.1,14.587]
[1756389101705,0.3939,4569.3,4569.2,3.2078]
[1756389101899,0.50055706,4570.2,4569.3,0.5008]
[1756389101900,0.3939,4569.4,4569.3,0.5008]
[1756389102317,0.9848,4569.2,4568.6,3.2078]
[1756389102507,0.39394,4568.8,4568.7,16.495]
[1756389102703,0.39394,4568.9,4568.7,16.495]
[1756389102904,0.39394,4568.9,4568.8,0.5008]
[1756389103303,11.81442,4570.4,4568.9,0.39394]
[1756389103304,0.3939,4569.4,4568.9,0.39394]
[1756389103500,0.39386,4569.8,4569.2,0.39391]
[1756389103707,0.39386,4569.8,4569.7,0.5008]
[1756389104004,0.39386,4569.8,4569.3,21.754]
[1756389104005,0.39395,4568.7,4568.6,3.2078]
[1756389104212,0.39395,4568.7,4568.0,3.2078]
[1756389104213,0.39401,4568.1,4568.0,3.2078]
[1756389104809,3.7037,4569.6,4568.2,0.39399]
[1756389105006,0.39395,4568.8,4568.6,0.5008]
[1756389105216,0.88986,4568.6,4568.5,3.2078]
[1756389105404,0.39401,4568.1,4568.0,3.2078]
[1756389105712,0.88991,4568.1,4568.0,3.2078]
[1756389105911,0.39401,4568.1,4568.0,3.2078]
[1756389106508,0.39397,4568.5,4568.0,7.2078]
[1756389106698,0.39399,4568.3,4568.1,0.5008]
[1756389106902,0.39401,4568.1,4568.0,3.2078]
[1756389107102,0.39401,4568.1,4568.0,24.9788]
[1756389107303,0.39401,4568.1,4568.0,25.4796]
[1756389107505,0.39401,4568.1,4568.0,24.9788]
[1756389107697,0.4959,4568.8,4568.0,25.4796]
[1756389107902,0.39399,4568.4,4568.1,0.5008]
[1756389108100,0.98485,4568.9,4568.2,21.754]
[1756389108101,0.4959,4568.9,4568.2,21.754]
[1756389108303,0.4959,4569.6,4568.6,0.5008]
[1756389108509,0.4959,4569.6,4568.8,3.2078]
[1756389108510,0.51890706,4569.5,4568.8,3.2078]
[1756389108708,0.39393,4569.0,4568.9,21.761]
[1756389108910,0.4959,4569.0,4568.2,0.5008]
[1756389109110,0.4959,4569.0,4568.3,21.766]
[1756389109312,0.39398,4568.5,4568.4,0.5008]
[1756389109508,0.39396,4568.7,4568.6,0.5008]
[1756389109710,0.39395,4568.8,4568.6,3.2078]
[1756389109908,0.39393,4569.0,4568.6,3.2078]
[1756389110107,0.39393,4569.0,4568.1,40.8]
[1756389110108,0.39399,4568.3,4568.1,40.8]
[1756389110306,0.4959,4568.8,4567.8,3.7086]
[1756389110610,0.98479,4569.2,4567.9,22.2518]
[1756389110808,0.39401,4568.0,4567.9,40.8]
[1756389111010,0.39401,4568.0,4567.9,0.20122862]
[1756389111206,0.39401,4568.0,4567.9,21.96222862]
[1756389112509,0.39401,4568.0,4566.7,3.2078]
[1756389112510,1.48106,4567.5,4566.7,3.2078]
[1756389112714,0.39412,4566.9,4566.7,3.2078]
[1756389113013,1.48106,4567.5,4566.5,0.5008]
[1756389113014,0.39414,4566.6,4566.5,0.5008]
[1756389113213,0.39416,4566.3,4566.2,18.2248]
[1756389113410,0.39416,4566.3,4565.7,40.8]
[1756389113411,0.3942,4565.8,4565.7,41.3008]
[1756389113619,1.4812,4566.9,4564.1,1.08665547]
[1756389113620,3.7037,4566.0,4564.9,0.50731063]
[1756389113911,0.3942,4565.9,4565.6,3.2078]
[1756389114113,0.3942,4565.9,4565.8,0.5008]
[1756389114317,0.3942,4566.0,4565.7,21.758]
[1756389114608,0.3942,4565.8,4565.6,3.7086]
[1756389114816,0.3942,4565.8,4565.7,21.751]
[1756389115020,0.8901,4565.8,4565.7,21.767]
[1756389115212,0.4959,4565.7,4565.6,3.2078]
[1756389115405,0.3942,4565.8,4565.6,24.9718]
[1756389115618,0.4959,4565.7,4565.6,3.2078]
[1756389115810,0.3942,4565.8,4565.6,3.2078]
[1756389116107,0.8901,4565.8,4565.7,21.76]
[1756389116515,0.8901,4565.8,4565.0,10.1]
[1756389116516,0.39427,4565.1,4565.0,10.1]
[1756389116712,0.39426,4565.2,4565.1,0.5008]
[1756389117117,3.2078,4566.2,4565.1,22.2568]
[1756389117419,0.39425,4565.3,4565.2,0.5008]
[1756389117813,0.39427,4565.1,4565.0,10.6008]
[1756389118009,0.39425,4565.4,4565.0,32.3598]
[1756389118215,0.39427,4565.1,4565.0,10.1]
[1756389118414,0.98555,4565.7,4565.0,10.1]
[1756389118415,0.39426,4565.2,4565.1,0.5008]
[1756389118717,0.39423,4565.5,4565.1,21.753]
[1756389118921,0.39424,4565.4,4565.2,0.5008]
[1756389119222,0.39422,4565.7,4565.2,0.5008]
[1756389119415,0.39421,4565.8,4565.5,3.2078]
[1756389119610,3.2078,4566.7,4565.7,0.5008]
[1756389119611,0.3942,4565.9,4565.7,0.5008]
[1756389119816,0.39419,4566.0,4565.6,21.96901]
[1756389120117,0.3942,4565.9,4565.7,21.746]
[1756389120329,0.89012,4565.6,4565.5,24.9488]
[1756389120517,0.39422,4565.6,4565.5,24.9488]
[1756389120721,4.19325,4566.1,4565.5,24.9488]
[1756389120722,0.39422,4565.7,4565.6,0.5008]
[1756389121320,0.39422,4565.7,4565.5,3.2078]
[1756389121518,0.4959,4565.6,4565.5,3.2078]
[1756389121720,0.4959,4565.6,4565.5,21.738]
[1756389122022,0.39422,4565.7,4565.5,21.738]
[1756389122327,0.4959,4565.6,4565.5,21.738]
[1756389122519,3.2078,4565.9,4565.0,10.1]
[1756389122520,0.39427,4565.1,4565.0,10.1]
[1756389122824,3.2078,4565.9,4565.0,10.1]